Workbook

Sheet 进入面试人员名单
A1: 附件
A2: 2023年上半年遂宁市安居区部分事业单位公开考试招聘工作人员考试总成绩及进入体检人员名单
A3: 序号 | B3: 岗位 代码 | C3: 报考 单位 | D3: 招聘专业 | E3: 招聘 人数 | F3: 准考证号 | G3: 姓名 | H3: 笔试成绩 | I3: 政策性加分 | J3: 笔试总 成绩 | K3: 笔试折合成绩 | L3: 面试成绩 | M3: 面试折合成绩 | N3: 总成绩 | O3: 岗位排名 | P3: 是否进入体检 | Q3: 备注
A4: 1 | B4: 613001 | C4: 遂宁市安居区融媒体中心 | D4: 播音与主持艺术专业、新闻学专业、广播电视编导专业 | E4: 1 | F4: 2613001031930 | G4: 徐新超 | H4: 62.70 | J4: 62.70 | K4: =J4*0.6 -> 37.62 | L4: 84.80 | M4: =L4*0.4 -> 33.92 | N4: =K4+M4 -> 71.54 | O4: 1 | P4: 是
A5: 2 | F5: 2613001011426 | G5: 冯帆 | H5: 57.50 | J5: 57.50 | K5: =J5*0.6 -> 34.50 | L5: 81.00 | M5: =L5*0.4 -> 32.40 | N5: =K5+M5 -> 66.90 | O5: 2
A6: 3 | F6: 2613001021829 | G6: 陈天凤 | H6: 56.50 | J6: 56.50 | K6: =J6*0.6 -> 33.90 | L6: 80.40 | M6: =L6*0.4 -> 32.16 | N6: =K6+M6 -> 66.06 | O6: 3
A7: 4 | B7: 613002 | C7: 安居特校 | D7: 本科：特殊教育专业、运动康复专业、康复治疗学专业、教育康复学专业；研究生：特殊教育学专业 | E7: 2 | F7: 1613002040303 | G7: 张旭均 | H7: 77.00 | J7: 77.00 | K7: =J7*0.5 -> 38.50 | L7: 82.72 | M7: =L7*0.5 -> 41.36 | N7: =K7+M7 -> 79.86 | O7: 1 | P7: 是
A8: 5 | F8: 1613002013127 | G8: 杨奇 | H8: 72.50 | J8: 72.50 | K8: =J8*0.5 -> 36.25 | L8: 82.45 | M8: =L8*0.5 -> 41.23 | N8: =K8+M8 -> 77.48 | O8: 2 | P8: 是
A9: 6 | F9: 1613002040913 | G9: 黄金玉 | H9: 74.50 | J9: 74.50 | K9: 37.25 | L9: 79.32 | M9: 39.66 | N9: 76.91 | O9: 3
A10: 7 | F10: 1613002040924 | G10: 陈萌 | H10: 69.50 | J10: 69.50 | K10: 34.75 | L10: 77.65 | M10: 38.83 | N10: 73.58 | O10: 4
A11: 8 | F11: 1613002042314 | G11: 刘丽佳 | H11: 67.50 | J11: 67.50 | K11: 33.75 | L11: 79.60 | M11: 39.80 | N11: 73.55 | O11: 5
A12: 9 | B12: 613003 | C12: 安居区各中小学 | D12: 本科：汉语言专业、汉语言文学专业、应用语言学专业；研究生：中国语言文学专业、语言学及应用语言学专业、汉语言文字学专业、学科教学（语文）专业 | E12: 5 | F12: 1613003042022 | G12: 陈华萍 | H12: 75.00 | J12: 75.00 | K12: 37.50 | L12: 83.64 | M12: 41.82 | N12: 79.32 | O12: 1 | P12: 是
A13: 10 | F13: 1613003032209 | G13: 王雅伦 | H13: 76.50 | J13: 76.50 | K13: 38.25 | L13: 80.06 | M13: 40.03 | N13: 78.28 | O13: 2 | P13: 是
A14: 11 | F14: 1613003033913 | G14: 向雪梅 | H14: 74.50 | J14: 74.50 | K14: 37.25 | L14: 82.02 | M14: 41.01 | N14: 78.26 | O14: 3 | P14: 是
A15: 12 | F15: 1613003034309 | G15: 周琳鸿 | H15: 80.00 | J15: 80.00 | K15: 40.00 | L15: 75.21 | M15: 37.61 | N15: 77.61 | O15: 4 | P15: 是
A16: 13 | F16: 1613003023016 | G16: 冉青红 | H16: 74.50 | J16: 74.50 | K16: 37.25 | L16: 77.20 | M16: 38.60 | N16: 75.85 | O16: 5 | P16: 是
A17: 14 | F17: 1613003010618 | G17: 邹露 | H17: 71.50 | J17: 71.50 | K17: 35.75 | L17: 80.01 | M17: 40.01 | N17: 75.76 | O17: 6
A18: 15 | F18: 1613003045416 | G18: 徐悦华 | H18: 72.00 | J18: 72.00 | K18: 36.00 | L18: 78.76 | M18: 39.38 | N18: 75.38 | O18: 7
A19: 16 | F19: 1613003040810 | G19: 陈艾 | H19: 69.50 | J19: 69.50 | K19: 34.75 | L19: 81.06 | M19: 40.53 | N19: 75.28 | O19: 8
A20: 17 | F20: 1613003043108 | G20: 古芳琳 | H20: 69.50 | J20: 69.50 | K20: 34.75 | L20: 80.95 | M20: 40.48 | N20: 75.23 | O20: 9
A21: 18 | F21: 1613003041927 | G21: 阳敏 | H21: 67.50 | J21: 67.50 | K21: 33.75 | L21: 82.63 | M21: 41.32 | N21: 75.07 | O21: 10
A22: 19 | F22: 1613003033422 | G22: 杜曦 | H22: 69.00 | J22: 69.00 | K22: 34.50 | L22: 80.92 | M22: 40.46 | N22: 74.96 | O22: 11
A23: 20 | F23: 1613003041715 | G23: 陈洁 | H23: 73.50 | J23: 73.50 | K23: 36.75 | L23: 76.03 | M23: 38.02 | N23: 74.77 | O23: 12
A24: 21 | F24: 1613003042517 | G24: 崔娇 | H24: 70.00 | J24: 70.00 | K24: 35.00 | L24: 78.00 | M24: 39.00 | N24: 74.00 | O24: 13
A25: 22 | F25: 1613003040911 | G25: 夏星月 | H25: 69.50 | J25: 69.50 | K25: 34.75 | L25: 76.11 | M25: 38.06 | N25: 72.81 | O25: 14
A26: 23 | F26: 1613003045312 | G26: 龚志兴 | H26: 67.50 | J26: 67.50 | K26: 33.75 | L26: 73.56 | M26: 36.78 | N26: 70.53 | O26: 15
A27: 24 | F27: 1613003044510 | G27: 孙树 | H27: 67.50 | J27: 67.50 | K27: 33.75 | L27: 71.42 | M27: 35.71 | N27: 69.46 | O27: 16
A28: 25 | B28: 613004 | C28: 安居区各中小学 | D28: 本科：数学与应用数学专业、数理基础科学专业；研究生：数学专业、基础数学专业、计算数学专业、应用数学专业、学科教学（数学）专业 | E28: 4 | F28: 1613004033026 | G28: 艾小凡 | H28: 68.50 | J28: 68.50 | K28: 34.25 | L28: 85.82 | M28: 42.91 | N28: 77.16 | O28: 1 | P28: 是
A29: 26 | F29: 1613004031125 | G29: 龙静 | H29: 74.00 | J29: 74.00 | K29: 37.00 | L29: 80.01 | M29: 40.01 | N29: 77.01 | O29: 2 | P29: 是
A30: 27 | F30: 1613004011022 | G30: 唐维 | H30: 64.50 | J30: 64.50 | K30: 32.25 | L30: 86.03 | M30: 43.02 | N30: 75.27 | O30: 3 | P30: 是
A31: 28 | F31: 1613004010813 | G31: 周艺 | H31: 61.00 | J31: 61.00 | K31: 30.50 | L31: 87.86 | M31: 43.93 | N31: 74.43 | O31: 4 | P31: 是
A32: 29 | F32: 1613004023324 | G32: 姚丹 | H32: 67.00 | J32: 67.00 | K32: 33.50 | L32: 81.31 | M32: 40.66 | N32: 74.16 | O32: 5
A33: 30 | F33: 1613004024227 | G33: 刘燕 | H33: 56.50 | J33: 56.50 | K33: 28.25 | L33: 85.92 | M33: 42.96 | N33: 71.21 | O33: 6
A34: 31 | F34: 1613004045405 | G34: 周颖 | H34: 57.00 | J34: 57.00 | K34: 28.50 | L34: 83.59 | M34: 41.80 | N34: 70.30 | O34: 7
A35: 32 | F35: 1613004044706 | G35: 杨东 | H35: 54.50 | J35: 54.50 | K35: 27.25 | L35: 82.73 | M35: 41.37 | N35: 68.62 | O35: 8
A36: 33 | F36: 1613004022113 | G36: 田莹 | H36: 52.50 | J36: 52.50 | K36: 26.25 | L36: 81.02 | M36: 40.51 | N36: 66.76 | O36: 9
A37: 34 | F37: 1613004041726 | G37: 冉隆鑫 | H37: 55.50 | J37: 55.50 | K37: 27.75 | L37: 77.94 | M37: 38.97 | N37: 66.72 | O37: 10
A38: 35 | F38: 1613004020110 | G38: 黄文君 | H38: 59.50 | J38: 59.50 | K38: 29.75 | L38: 0.00 | M38: 0.00 | N38: 29.75 | O38: 11 | Q38: 缺考
A39: 36 | F39: 1613004043514 | G39: 李丹 | H39: 57.50 | J39: 57.50 | K39: 28.75 | L39: 0.00 | M39: 0.00 | N39: 28.75 | O39: 12 | Q39: 缺考
A40: 37 | B40: 613005 | C40: 安居区各中小学 | D40: 本科：英语专业、商务英语专业、应用英语专业；研究生：英语语言文学专业、学科教学（英语）专业 | E40: 7 | F40: 1613005012211 | G40: 杨苏苏 | H40: 78.50 | J40: 78.50 | K40: =J40*0.5 -> 39.25 | L40: 86.06 | M40: =L40*0.5 -> 43.03 | N40: =K40+M40 -> 82.28 | O40: 1 | P40: 是
A41: 38 | F41: 1613005023121 | G41: 李懋 | H41: 79.50 | J41: 79.50 | K41: 39.75 | L41: 84.43 | M41: 42.22 | N41: 81.97 | O41: 2 | P41: 是
A42: 39 | F42: 1613005013607 | G42: 向乐 | H42: 80.00 | J42: 80.00 | K42: 40.00 | L42: 83.21 | M42: 41.61 | N42: 81.61 | O42: 3 | P42: 是
A43: 40 | F43: 1613005043506 | G43: 孙悦 | H43: 79.00 | J43: 79.00 | K43: 39.50 | L43: 83.59 | M43: 41.80 | N43: 81.30 | O43: 4 | P43: 是
A44: 41 | F44: 1613005010411 | G44: 胡义茜 | H44: 76.50 | J44: 76.50 | K44: 38.25 | L44: 84.71 | M44: 42.36 | N44: 80.61 | O44: 5 | P44: 是
A45: 42 | F45: 1613005030723 | G45: 潘虹颖 | H45: 72.50 | I45: 6.00 | J45: 78.50 | K45: 39.25 | L45: 82.00 | M45: 41.00 | N45: 80.25 | O45: 6 | P45: 是
A46: 43 | F46: 1613005034223 | G46: 王玲 | H46: 76.50 | J46: 76.50 | K46: 38.25 | L46: 83.66 | M46: 41.83 | N46: 80.08 | O46: 7 | P46: 是
A47: 44 | F47: 1613005044809 | G47: 彭申言 | H47: 80.00 | J47: 80.00 | K47: 40.00 | L47: 80.00 | M47: 40.00 | N47: 80.00 | O47: 8
A48: 45 | F48: 1613005030816 | G48: 赵敏 | H48: 78.00 | J48: 78.00 | K48: 39.00 | L48: 79.82 | M48: 39.91 | N48: 78.91 | O48: 9
A49: 46 | F49: 1613005021015 | G49: 汪清清 | H49: 77.50 | J49: 77.50 | K49: 38.75 | L49: 79.81 | M49: 39.91 | N49: 78.66 | O49: 10
A50: 47 | F50: 1613005022506 | G50: 唐宝莲 | H50: 78.50 | J50: 78.50 | K50: 39.25 | L50: 78.54 | M50: 39.27 | N50: 78.52 | O50: 11
A51: 48 | F51: 1613005022525 | G51: 何海燕 | H51: 78.00 | J51: 78.00 | K51: 39.00 | L51: 78.76 | M51: 39.38 | N51: 78.38 | O51: 12
A52: 49 | F52: 1613005012912 | G52: 王凤林 | H52: 79.00 | J52: 79.00 | K52: 39.50 | L52: 77.65 | M52: 38.83 | N52: 78.33 | O52: 13
A53: 50 | F53: 1613005021008 | G53: 王渝 | H53: 77.00 | J53: 77.00 | K53: 38.50 | L53: 78.66 | M53: 39.33 | N53: 77.83 | O53: 14
A54: 51 | F54: 1613005031613 | G54: 吴丹 | H54: 76.50 | J54: 76.50 | K54: 38.25 | L54: 77.24 | M54: 38.62 | N54: 76.87 | O54: 15
A55: 52 | F55: 1613005045025 | G55: 许世梅 | H55: 76.50 | J55: 76.50 | K55: 38.25 | L55: 74.64 | M55: 37.32 | N55: 75.57 | O55: 16
A56: 53 | F56: 1613005015024 | G56: 曾灵枝 | H56: 78.00 | J56: 78.00 | K56: 39.00 | L56: 72.64 | M56: 36.32 | N56: 75.32 | O56: 17
A57: 54 | F57: 1613005022002 | G57: 舒婷 | H57: 78.00 | J57: 78.00 | K57: 39.00 | L57: 71.92 | M57: 35.96 | N57: 74.96 | O57: 18
A58: 55 | F58: 1613005024623 | G58: 陈虹芹 | H58: 77.00 | J58: 77.00 | K58: 38.50 | L58: 72.41 | M58: 36.21 | N58: 74.71 | O58: 19
A59: 56 | F59: 1613005040713 | G59: 刘晓芹 | H59: 76.00 | J59: 76.00 | K59: 38.00 | L59: 73.15 | M59: 36.58 | N59: 74.58 | O59: 20
A60: 57 | F60: 1613005013003 | G60: 唐敏 | H60: 78.00 | J60: 78.00 | K60: 39.00 | L60: 70.95 | M60: 35.48 | N60: 74.48 | O60: 21
A61: 58 | B61: 613006 | C61: 安居区各中小学 | D61: 本科：政治学与行政学专业、国际政治专业、思想政治教育专业；研究生：政治学专业、政治学理论专业、学科教学（思政）专业 | E61: 2 | F61: 1613006024605 | G61: 顾桂华 | H61: 76.00 | J61: 76.00 | K61: 38.00 | L61: 81.50 | M61: 40.75 | N61: 78.75 | O61: 1 | P61: 是
A62: 59 | F62: 1613006042110 | G62: 蒋沛琳 | H62: 74.50 | J62: 74.50 | K62: 37.25 | L62: 81.45 | M62: 40.73 | N62: 77.98 | O62: 2 | P62: 是
A63: 60 | F63: 1613006041911 | G63: 张红梅 | H63: 68.00 | J63: 68.00 | K63: 34.00 | L63: 85.45 | M63: 42.73 | N63: 76.73 | O63: 3
A64: 61 | F64: 1613006015122 | G64: 谢诗蓓 | H64: 68.50 | J64: 68.50 | K64: 34.25 | L64: 84.51 | M64: 42.26 | N64: 76.51 | O64: 4
A65: 62 | F65: 1613006032925 | G65: 申志容 | H65: 72.50 | J65: 72.50 | K65: 36.25 | L65: 78.97 | M65: 39.49 | N65: 75.74 | O65: 5
A66: 63 | F66: 1613006044215 | G66: 吕颖 | H66: 69.00 | J66: 69.00 | K66: 34.50 | L66: 79.35 | M66: 39.68 | N66: 74.18 | O66: 6
A67: 64 | B67: 613007 | C67: 安居区各中小学 | D67: 本科：计算机科学与技术专业、电子与计算机工程专业、电子信息工程专业、数字媒体技术专业、网络工程专业、软件工程专业；研究生：计算机科学与技术专业、计算机应用技术专业 | E67: 2 | F67: 1613007014813 | G67: 黄丹 | H67: 71.00 | J67: 71.00 | K67: 35.50 | L67: 85.18 | M67: 42.59 | N67: 78.09 | O67: 1 | P67: 是
A68: 65 | F68: 1613007014003 | G68: 谢思琴 | H68: 69.00 | J68: 69.00 | K68: 34.50 | L68: 86.98 | M68: 43.49 | N68: 77.99 | O68: 2 | P68: 是
A69: 66 | F69: 1613007043303 | G69: 林珊珊 | H69: 74.00 | J69: 74.00 | K69: 37.00 | L69: 81.85 | M69: 40.93 | N69: 77.93 | O69: 3
A70: 67 | F70: 1613007012120 | G70: 吴雨芹 | H70: 67.50 | J70: 67.50 | K70: 33.75 | L70: 80.87 | M70: 40.44 | N70: 74.19 | O70: 4
A71: 68 | F71: 1613007010117 | G71: 李潇 | H71: 65.50 | J71: 65.50 | K71: 32.75 | L71: 79.42 | M71: 39.71 | N71: 72.46 | O71: 5
A72: 69 | F72: 1613007040616 | G72: 高黎 | H72: 65.00 | J72: 65.00 | K72: =J72*0.5 -> 32.50 | L72: 79.42 | M72: =L72*0.5 -> 39.71 | N72: =K72+M72 -> 72.21 | O72: 6
A73: 70 | B73: 613008 | C73: 安居区各中小学 | D73: 本科：心理学专业、应用心理学专业；研究生：心理学专业、基础心理学专业、应用心理学专业、心理健康教育专业 | E73: 2 | F73: 1613008033611 | G73: 段敏 | H73: 77.50 | J73: 77.50 | K73: 38.75 | L73: 83.82 | M73: 41.91 | N73: 80.66 | O73: 1 | P73: 是
A74: 71 | F74: 1613008020828 | G74: 彭丹凤 | H74: 79.00 | J74: 79.00 | K74: 39.50 | L74: 82.09 | M74: 41.05 | N74: 80.55 | O74: 2 | P74: 是
A75: 72 | F75: 1613008040309 | G75: 张杰 | H75: 72.00 | J75: 72.00 | K75: 36.00 | L75: 85.22 | M75: 42.61 | N75: 78.61 | O75: 3
A76: 73 | F76: 1613008031622 | G76: 黎灿 | H76: 70.50 | J76: 70.50 | K76: 35.25 | L76: 82.26 | M76: 41.13 | N76: 76.38 | O76: 4
A77: 74 | F77: 1613008010906 | G77: 吴梦琳 | H77: 68.50 | J77: 68.50 | K77: 34.25 | L77: 82.40 | M77: 41.20 | N77: 75.45 | O77: 5
A78: 75 | F78: 1613008021823 | G78: 赵玉婷 | H78: 68.50 | J78: 68.50 | K78: 34.25 | L78: 80.31 | M78: 40.16 | N78: 74.41 | O78: 6
A79: 76 | B79: 613009 | C79: 安居区各中小学 | D79: 本科：音乐学专业、音乐表演专业、舞蹈表演专业、舞蹈学专业；研究生：音乐学专业、音乐与舞蹈学专业、学科教学（音乐）专业、音乐专业 | E79: 5 | F79: 1613009041806 | G79: 孙红 | H79: 75.00 | J79: 75.00 | K79: 37.50 | L79: 83.61 | M79: 41.81 | N79: 79.31 | O79: 1 | P79: 是
A80: 77 | F80: 1613009042223 | G80: 秦华钗 | H80: 75.00 | J80: 75.00 | K80: 37.50 | L80: 83.07 | M80: 41.54 | N80: 79.04 | O80: 2 | P80: 是
A81: 78 | F81: 1613009011506 | G81: 袁颖 | H81: 74.50 | J81: 74.50 | K81: 37.25 | L81: 79.51 | M81: 39.76 | N81: 77.01 | O81: 3 | P81: 是
A82: 79 | F82: 1613009032802 | G82: 谢松华 | H82: 69.00 | J82: 69.00 | K82: 34.50 | L82: 84.52 | M82: 42.26 | N82: 76.76 | O82: 4 | P82: 是
A83: 80 | F83: 1613009021622 | G83: 张骥翔 | H83: 68.00 | J83: 68.00 | K83: 34.00 | L83: 85.34 | M83: 42.67 | N83: 76.67 | O83: 5 | P83: 是
A84: 81 | F84: 1613009033011 | G84: 游宇佳 | H84: 73.50 | J84: 73.50 | K84: 36.75 | L84: 79.78 | M84: 39.89 | N84: 76.64 | O84: 6
A85: 82 | F85: 1613009013410 | G85: 罗巧梅 | H85: 69.50 | J85: 69.50 | K85: 34.75 | L85: 83.62 | M85: 41.81 | N85: 76.56 | O85: 7
A86: 83 | F86: 1613009011106 | G86: 蒋钦 | H86: 73.00 | J86: 73.00 | K86: 36.50 | L86: 79.45 | M86: 39.73 | N86: 76.23 | O86: 8
A87: 84 | F87: 1613009014318 | G87: 王姚富 | H87: 68.00 | J87: 68.00 | K87: 34.00 | L87: 84.34 | M87: 42.17 | N87: 76.17 | O87: 9
A88: 85 | F88: 1613009031429 | G88: 杨丹 | H88: 71.00 | J88: 71.00 | K88: 35.50 | L88: 80.58 | M88: 40.29 | N88: 75.79 | O88: 10
A89: 86 | F89: 1613009011301 | G89: 李亚兰 | H89: 70.00 | I89: 2.00 | J89: 72.00 | K89: 36.00 | L89: 78.67 | M89: 39.34 | N89: 75.34 | O89: 11
A90: 87 | F90: 1613009020321 | G90: 田文文 | H90: 68.50 | J90: 68.50 | K90: 34.25 | L90: 81.75 | M90: 40.88 | N90: 75.13 | O90: 12
A91: 88 | F91: 1613009011705 | G91: 刘巧 | H91: 69.00 | J91: 69.00 | K91: 34.50 | L91: 81.07 | M91: 40.54 | N91: 75.04 | O91: 13
A92: 89 | F92: 1613009011717 | G92: 周炳财 | H92: 68.00 | J92: 68.00 | K92: 34.00 | L92: 80.87 | M92: 40.44 | N92: 74.44 | O92: 14
A93: 90 | F93: 1613009023616 | G93: 杨博智 | H93: 68.50 | J93: 68.50 | K93: 34.25 | L93: 76.50 | M93: 38.25 | N93: 72.50 | O93: 15
A94: 91 | F94: 1613009012405 | G94: 王珺 | H94: 68.00 | J94: 68.00 | K94: 34.00 | L94: 76.35 | M94: 38.18 | N94: 72.18 | O94: 16
A95: 92 | F95: 1613009022702 | G95: 罗菡平 | H95: 69.00 | J95: 69.00 | K95: 34.50 | L95: 72.54 | M95: 36.27 | N95: 70.77 | O95: 17
A96: 93 | B96: 613010 | C96: 安居区各中小学 | D96: 本科：美术学专业、美术教育专业、视觉传达设计专业；研究生：美术学专业、学科教学（美术）专业 | E96: 4 | F96: 1613010014008 | G96: 王琴 | H96: 80.50 | J96: 80.50 | K96: 40.25 | L96: 83.23 | M96: 41.62 | N96: 81.87 | O96: 1 | P96: 是
A97: 94 | F97: 1613010030409 | G97: 曾爽 | H97: 79.50 | J97: 79.50 | K97: 39.75 | L97: 84.07 | M97: 42.04 | N97: 81.79 | O97: 2 | P97: 是
A98: 95 | F98: 1613010013025 | G98: 沈健 | H98: 76.00 | J98: 76.00 | K98: 38.00 | L98: 86.27 | M98: 43.14 | N98: 81.14 | O98: 3 | P98: 是
A99: 96 | F99: 1613010010503 | G99: 蒋艳 | H99: 80.00 | J99: 80.00 | K99: 40.00 | L99: 81.59 | M99: 40.80 | N99: 80.80 | O99: 4 | P99: 是
A100: 97 | F100: 1613010012316 | G100: 冯廷 | H100: 76.50 | J100: 76.50 | K100: 38.25 | L100: 84.06 | M100: 42.03 | N100: 80.28 | O100: 5
A101: 98 | F101: 1613010014415 | G101: 郎小庆 | H101: 75.00 | J101: 75.00 | K101: 37.50 | L101: 84.83 | M101: 42.42 | N101: 79.92 | O101: 6
A102: 99 | F102: 1613010012611 | G102: 何柳 | H102: 75.50 | J102: 75.50 | K102: 37.75 | L102: 84.27 | M102: 42.14 | N102: 79.89 | O102: 7
A103: 100 | F103: 1613010031717 | G103: 简园园 | H103: 75.00 | J103: 75.00 | K103: 37.50 | L103: 84.50 | M103: 42.25 | N103: 79.75 | O103: 8
A104: 101 | F104: 1613010013922 | G104: 唐会 | H104: 76.00 | J104: 76.00 | K104: =J104*0.5 -> 38.00 | L104: 83.26 | M104: =L104*0.5 -> 41.63 | N104: =K104+M104 -> 79.63 | O104: 9
A105: 102 | F105: 1613010010506 | G105: 蒲瑶 | H105: 77.00 | J105: 77.00 | K105: 38.50 | L105: 81.99 | M105: 41.00 | N105: 79.50 | O105: 10
A106: 103 | F106: 1613010010318 | G106: 黄青青 | H106: 75.00 | J106: 75.00 | K106: 37.50 | L106: 83.43 | M106: 41.72 | N106: 79.22 | O106: 11
A107: 104 | F107: 1613010020223 | G107: 刘嫣 | H107: 76.00 | J107: 76.00 | K107: 38.00 | L107: 82.32 | M107: 41.16 | N107: 79.16 | O107: 12
A108: 105 | F108: 1613010020224 | G108: 庞大珍 | H108: 75.00 | J108: 75.00 | K108: 37.50 | L108: 83.17 | M108: 41.59 | N108: 79.09 | O108: 13
A109: 106 | F109: 1613010010724 | G109: 蒋仪 | H109: 75.50 | J109: 75.50 | K109: 37.75 | L109: 82.30 | M109: 41.15 | N109: 78.90 | O109: 14
A110: 107 | F110: 1613010012403 | G110: 向莉 | H110: 75.50 | J110: 75.50 | K110: 37.75 | L110: 81.96 | M110: 40.98 | N110: 78.73 | O110: 15
A111: 108 | B111: 613011 | C111: 安居区各中小学 | D111: 本科：体育教育专业、运动训练专业、社会体育指导与管理专业、武术与民族传统体育专业、休闲体育专业；研究生：体育学专业、体育教学专业、体育教育训练学专业、民族传统体育学专业、学科教学（体育）专业 | E111: 5 | F111: 1613011032903 | G111: 吴超 | H111: 70.00 | J111: 70.00 | K111: 35.00 | L111: 88.56 | M111: 44.28 | N111: 79.28 | O111: 1 | P111: 是
A112: 109 | F112: 1613011010918 | G112: 王雷 | H112: 69.00 | J112: 69.00 | K112: 34.50 | L112: 88.35 | M112: 44.18 | N112: 78.68 | O112: 2 | P112: 是
A113: 110 | F113: 1613011014118 | G113: 任湛宇 | H113: 75.50 | J113: 75.50 | K113: 37.75 | L113: 78.70 | M113: 39.35 | N113: 77.10 | O113: 3 | P113: 是
A114: 111 | F114: 1613011041405 | G114: 梅斌 | H114: 72.00 | J114: 72.00 | K114: 36.00 | L114: 81.75 | M114: 40.88 | N114: 76.88 | O114: 4 | P114: 是
A115: 112 | F115: 1613011041827 | G115: 冯柚炜 | H115: 73.50 | J115: 73.50 | K115: 36.75 | L115: 79.89 | M115: 39.95 | N115: 76.70 | O115: 5 | P115: 是
A116: 113 | F116: 1613011014304 | G116: 胡晶波 | H116: 74.00 | J116: 74.00 | K116: 37.00 | L116: 79.14 | M116: 39.57 | N116: 76.57 | O116: 6
A117: 114 | F117: 1613011013602 | G117: 兰文滔 | H117: 73.00 | J117: 73.00 | K117: 36.50 | L117: 80.04 | M117: 40.02 | N117: 76.52 | O117: 7
A118: 115 | F118: 1613011011202 | G118: 张霖 | H118: 74.50 | J118: 74.50 | K118: 37.25 | L118: 75.98 | M118: 37.99 | N118: 75.24 | O118: 8
A119: 116 | F119: 1613011034318 | G119: 胡恒 | H119: 75.50 | J119: 75.50 | K119: 37.75 | L119: 74.82 | M119: 37.41 | N119: 75.16 | O119: 9
A120: 117 | F120: 1613011022718 | G120: 洪志刚 | H120: 69.00 | J120: 69.00 | K120: 34.50 | L120: 80.01 | M120: 40.01 | N120: 74.51 | O120: 10
A121: 118 | F121: 1613011010714 | G121: 苏宇藉 | H121: 69.50 | J121: 69.50 | K121: 34.75 | L121: 79.21 | M121: 39.61 | N121: 74.36 | O121: 11
A122: 119 | F122: 1613011041010 | G122: 向玉 | H122: 71.00 | J122: 71.00 | K122: 35.50 | L122: 76.84 | M122: 38.42 | N122: 73.92 | O122: 12
A123: 120 | F123: 1613011010907 | G123: 任吉 | H123: 71.00 | J123: 71.00 | K123: 35.50 | L123: 76.74 | M123: 38.37 | N123: 73.87 | O123: 13
A124: 121 | F124: 1613011020123 | G124: 唐随唇 | H124: 70.00 | J124: 70.00 | K124: 35.00 | L124: 77.63 | M124: 38.82 | N124: 73.82 | O124: 14
A125: 122 | F125: 1613011020108 | G125: 刘仕霞 | H125: 71.00 | J125: 71.00 | K125: 35.50 | L125: 76.60 | M125: 38.30 | N125: 73.80 | O125: 15
A126: 123 | F126: 1613011011306 | G126: 高川 | H126: 69.00 | J126: 69.00 | K126: 34.50 | L126: 77.15 | M126: 38.58 | N126: 73.08 | O126: 16
A127: 124 | F127: 1613011012627 | G127: 吴凡 | H127: 69.00 | J127: 69.00 | K127: 34.50 | L127: 74.38 | M127: 37.19 | N127: 71.69 | O127: 17
A128: 125 | B128: 613012 | C128: 安居区各幼儿园 | D128: 专科：学前教育专业、早期教育专业、美术教育（学前方向）专业、舞蹈教育（学前方向）专业、音乐教育（学前方向）专业；本科：学前教育专业；研究生：学前教育学专业 | E128: 22 | F128: 1613012021705 | G128: 田思思 | H128: 75.50 | J128: 75.50 | K128: 37.75 | L128: 88.20 | M128: 44.10 | N128: 81.85 | O128: 1 | P128: 是
A129: 126 | F129: 1613012022312 | G129: 杨婷婷 | H129: 79.50 | J129: 79.50 | K129: 39.75 | L129: 83.52 | M129: 41.76 | N129: 81.51 | O129: 2 | P129: 是
A130: 127 | F130: 1613012011526 | G130: 王琦琦 | H130: 77.50 | J130: 77.50 | K130: 38.75 | L130: 83.20 | M130: 41.60 | N130: 80.35 | O130: 3 | P130: 是
A131: 128 | F131: 1613012040325 | G131: 田维 | H131: 76.00 | J131: 76.00 | K131: 38.00 | L131: 83.22 | M131: 41.61 | N131: 79.61 | O131: 4 | P131: 是
A132: 129 | F132: 1613012013526 | G132: 杨兰 | H132: 74.00 | J132: 74.00 | K132: 37.00 | L132: 84.80 | M132: 42.40 | N132: 79.40 | O132: 5 | P132: 是
A133: 130 | F133: 1613012032028 | G133: 杨乐潇 | H133: 76.50 | J133: 76.50 | K133: 38.25 | L133: 81.93 | M133: 40.97 | N133: 79.22 | O133: 6 | P133: 是
A134: 131 | F134: 1613012030413 | G134: 龚举庆 | H134: 73.00 | J134: 73.00 | K134: 36.50 | L134: 84.41 | M134: 42.21 | N134: 78.71 | O134: 7 | P134: 是
A135: 132 | F135: 1613012015110 | G135: 赖金凤 | H135: 73.50 | J135: 73.50 | K135: 36.75 | L135: 83.77 | M135: 41.89 | N135: 78.64 | O135: 8 | P135: 是
A136: 133 | F136: 1613012040706 | G136: 王喻宏 | H136: 79.00 | J136: 79.00 | K136: =J136*0.5 -> 39.50 | L136: 77.80 | M136: =L136*0.5 -> 38.90 | N136: =K136+M136 -> 78.40 | O136: 9 | P136: 是
A137: 134 | F137: 1613012024403 | G137: 黎芮君 | H137: 78.00 | J137: 78.00 | K137: 39.00 | L137: 78.76 | M137: 39.38 | N137: 78.38 | O137: 10 | P137: 是
A138: 135 | F138: 1613012014314 | G138: 唐飘 | H138: 77.00 | J138: 77.00 | K138: 38.50 | L138: 79.70 | M138: 39.85 | N138: 78.35 | O138: 11 | P138: 是
A139: 136 | F139: 1613012012230 | G139: 蒋佩君 | H139: 76.50 | J139: 76.50 | K139: 38.25 | L139: 80.11 | M139: 40.06 | N139: 78.31 | O139: 12 | P139: 是
A140: 137 | F140: 1613012044106 | G140: 余雪 | H140: 73.00 | J140: 73.00 | K140: 36.50 | L140: 82.83 | M140: 41.42 | N140: 77.92 | O140: 13 | P140: 是
A141: 138 | F141: 1613012031722 | G141: 梁宗 | H141: 75.50 | J141: 75.50 | K141: 37.75 | L141: 79.73 | M141: 39.87 | N141: 77.62 | O141: 14 | P141: 是
A142: 139 | F142: 1613012010815 | G142: 卢芯如 | H142: 71.50 | J142: 71.50 | K142: 35.75 | L142: 83.32 | M142: 41.66 | N142: 77.41 | O142: 15 | P142: 是
A143: 140 | F143: 1613012033520 | G143: 陈雪 | H143: 74.50 | J143: 74.50 | K143: 37.25 | L143: 79.90 | M143: 39.95 | N143: 77.20 | O143: 16 | P143: 是
A144: 141 | F144: 1613012010122 | G144: 夏佳敏 | H144: 74.00 | J144: 74.00 | K144: 37.00 | L144: 80.09 | M144: 40.05 | N144: 77.05 | O144: 17 | P144: 是
A145: 142 | F145: 1613012012309 | G145: 殷琪 | H145: 73.50 | J145: 73.50 | K145: 36.75 | L145: 80.25 | M145: 40.13 | N145: 76.88 | O145: 18 | P145: 是
A146: 143 | F146: 1613012010710 | G146: 尹凤娇 | H146: 73.50 | J146: 73.50 | K146: 36.75 | L146: 80.13 | M146: 40.07 | N146: 76.82 | O146: 19 | P146: 是
A147: 144 | F147: 1613012014610 | G147: 滕英迪 | H147: 74.00 | J147: 74.00 | K147: 37.00 | L147: 79.55 | M147: 39.78 | N147: 76.78 | O147: 20 | P147: 是
A148: 145 | F148: 1613012010930 | G148: 赖雨 | H148: 70.50 | J148: 70.50 | K148: 35.25 | L148: 82.86 | M148: 41.43 | N148: 76.68 | O148: 21 | P148: 是
A149: 146 | F149: 1613012013401 | G149: 李萍 | H149: 72.00 | J149: 72.00 | K149: 36.00 | L149: 80.65 | M149: 40.33 | N149: 76.33 | O149: 22 | P149: 是
A150: 147 | F150: 1613012014221 | G150: 刘毅 | H150: 69.50 | J150: 69.50 | K150: 34.75 | L150: 83.08 | M150: 41.54 | N150: 76.29 | O150: 23
A151: 148 | F151: 1613012030905 | G151: 米黎 | H151: 71.50 | J151: 71.50 | K151: 35.75 | L151: 80.88 | M151: 40.44 | N151: 76.19 | O151: 24
A152: 149 | F152: 1613012013521 | G152: 谢雨彤 | H152: 73.50 | J152: 73.50 | K152: 36.75 | L152: 78.82 | M152: 39.41 | N152: 76.16 | O152: 25
A153: 150 | F153: 1613012032103 | G153: 夏徐 | H153: 69.50 | J153: 69.50 | K153: 34.75 | L153: 82.70 | M153: 41.35 | N153: 76.10 | O153: 26
A154: 151 | F154: 1613012014702 | G154: 周江燕 | H154: 72.50 | J154: 72.50 | K154: 36.25 | L154: 79.50 | M154: 39.75 | N154: 76.00 | O154: 27
A155: 152 | F155: 1613012011323 | G155: 杨勤 | H155: 72.50 | J155: 72.50 | K155: 36.25 | L155: 79.28 | M155: 39.64 | N155: 75.89 | O155: 28
A156: 153 | F156: 1613012030814 | G156: 彭文静 | H156: 68.50 | J156: 68.50 | K156: 34.25 | L156: 83.23 | M156: 41.62 | N156: 75.87 | O156: 29
A157: 154 | F157: 1613012021412 | G157: 罗琴 | H157: 73.00 | J157: 73.00 | K157: 36.50 | L157: 78.56 | M157: 39.28 | N157: 75.78 | O157: 30
A158: 155 | F158: 1613012022026 | G158: 任欢 | H158: 70.50 | J158: 70.50 | K158: 35.25 | L158: 81.04 | M158: 40.52 | N158: 75.77 | O158: 31
A159: 156 | F159: 1613012012907 | G159: 王静 | H159: 70.50 | J159: 70.50 | K159: 35.25 | L159: 81.02 | M159: 40.51 | N159: 75.76 | O159: 32
A160: 157 | F160: 1613012010111 | G160: 张婕 | H160: 70.00 | J160: 70.00 | K160: 35.00 | L160: 81.48 | M160: 40.74 | N160: 75.74 | O160: 33
A161: 158 | F161: 1613012030130 | G161: 聂璐 | H161: 69.50 | J161: 69.50 | K161: 34.75 | L161: 81.35 | M161: 40.68 | N161: 75.43 | O161: 34
A162: 159 | F162: 1613012021216 | G162: 廖贞 | H162: 69.00 | J162: 69.00 | K162: 34.50 | L162: 81.76 | M162: 40.88 | N162: 75.38 | O162: 35
A163: 160 | F163: 1613012042117 | G163: 周胜兰 | H163: 71.50 | J163: 71.50 | K163: 35.75 | L163: 79.17 | M163: 39.59 | N163: 75.34 | O163: 36
A164: 161 | F164: 1613012032930 | G164: 唐露 | H164: 73.50 | J164: 73.50 | K164: 36.75 | L164: 76.70 | M164: 38.35 | N164: 75.10 | O164: 37
A165: 162 | F165: 1613012012828 | G165: 罗敏 | H165: 68.50 | J165: 68.50 | K165: 34.25 | L165: 81.67 | M165: 40.84 | N165: 75.09 | O165: 38
A166: 163 | F166: 1613012032613 | G166: 代艺铭 | H166: 68.50 | J166: 68.50 | K166: 34.25 | L166: 81.30 | M166: 40.65 | N166: 74.90 | O166: 39
A167: 164 | F167: 1613012021415 | G167: 谭雪玲 | H167: 69.50 | J167: 69.50 | K167: 34.75 | L167: 80.01 | M167: 40.01 | N167: 74.76 | O167: 40
A168: 165 | F168: 1613012020102 | G168: 魏亚兰 | H168: 72.50 | J168: 72.50 | K168: =J168*0.5 -> 36.25 | L168: 76.96 | M168: =L168*0.5 -> 38.48 | N168: =K168+M168 -> 74.73 | O168: 41
A169: 166 | F169: 1613012041019 | G169: 罗丹凤 | H169: 69.50 | J169: 69.50 | K169: 34.75 | L169: 79.90 | M169: 39.95 | N169: 74.70 | O169: 42
A170: 167 | F170: 1613012011212 | G170: 吴琰 | H170: 68.00 | J170: 68.00 | K170: 34.00 | L170: 81.38 | M170: 40.69 | N170: 74.69 | O170: 43
A171: 168 | F171: 1613012030604 | G171: 罗亚 | H171: 70.00 | J171: 70.00 | K171: 35.00 | L171: 79.08 | M171: 39.54 | N171: 74.54 | O171: 44
A172: 169 | F172: 1613012030428 | G172: 宋皖馨 | H172: 74.50 | J172: 74.50 | K172: 37.25 | L172: 74.41 | M172: 37.21 | N172: 74.46 | O172: 45
A173: 170 | F173: 1613012014123 | G173: 张凤 | H173: 73.00 | J173: 73.00 | K173: 36.50 | L173: 75.58 | M173: 37.79 | N173: 74.29 | O173: 46
A174: 171 | F174: 1613012020814 | G174: 王洪湖 | H174: 74.00 | J174: 74.00 | K174: 37.00 | L174: 74.56 | M174: 37.28 | N174: 74.28 | O174: 47
A175: 172 | F175: 1613012031313 | G175: 王静 | H175: 72.00 | J175: 72.00 | K175: 36.00 | L175: 75.61 | M175: 37.81 | N175: 73.81 | O175: 48
A176: 173 | F176: 1613012031223 | G176: 陈凡 | H176: 74.50 | J176: 74.50 | K176: 37.25 | L176: 72.75 | M176: 36.38 | N176: 73.63 | O176: 49
A177: 174 | F177: 1613012014217 | G177: 陈兰 | H177: 69.50 | J177: 69.50 | K177: 34.75 | L177: 77.74 | M177: 38.87 | N177: 73.62 | O177: 50
A178: 175 | F178: 1613012012810 | G178: 孙静雯 | H178: 70.00 | J178: 70.00 | K178: 35.00 | L178: 77.22 | M178: 38.61 | N178: 73.61 | O178: 51
A179: 176 | F179: 1613012031112 | G179: 管钰洪 | H179: 69.00 | J179: 69.00 | K179: 34.50 | L179: 77.99 | M179: 39.00 | N179: 73.50 | O179: 52
A180: 177 | F180: 1613012032310 | G180: 卜塬圆 | H180: 68.50 | J180: 68.50 | K180: 34.25 | L180: 78.36 | M180: 39.18 | N180: 73.43 | O180: 53
A181: 178 | F181: 1613012014915 | G181: 王晓 | H181: 70.50 | J181: 70.50 | K181: 35.25 | L181: 75.61 | M181: 37.81 | N181: 73.06 | O181: 54
A182: 179 | F182: 1613012021125 | G182: 唐巧丽 | H182: 68.50 | J182: 68.50 | K182: 34.25 | L182: 77.55 | M182: 38.78 | N182: 73.03 | O182: 55
A183: 180 | F183: 1613012012012 | G183: 陈艳 | H183: 71.00 | J183: 71.00 | K183: 35.50 | L183: 74.49 | M183: 37.25 | N183: 72.75 | O183: 56
A184: 181 | F184: 1613012013626 | G184: 张怡 | H184: 69.50 | J184: 69.50 | K184: 34.75 | L184: 75.95 | M184: 37.98 | N184: 72.73 | O184: 57
A185: 182 | F185: 1613012014609 | G185: 邱滟茹 | H185: 68.00 | J185: 68.00 | K185: 34.00 | L185: 77.15 | M185: 38.58 | N185: 72.58 | O185: 58
A186: 183 | F186: 1613012012602 | G186: 唐红雨 | H186: 69.00 | J186: 69.00 | K186: 34.50 | L186: 75.92 | M186: 37.96 | N186: 72.46 | O186: 59
A187: 184 | F187: 1613012024108 | G187: 甘园茨 | H187: 70.50 | J187: 70.50 | K187: 35.25 | L187: 74.24 | M187: 37.12 | N187: 72.37 | O187: 60
A188: 185 | F188: 1613012032015 | G188: 陈琪祺 | H188: 70.50 | J188: 70.50 | K188: 35.25 | L188: 74.17 | M188: 37.09 | N188: 72.34 | O188: 61
A189: 186 | F189: 1613012011107 | G189: 尹国荘 | H189: 70.50 | J189: 70.50 | K189: 35.25 | L189: 73.62 | M189: 36.81 | N189: 72.06 | O189: 62
A190: 187 | F190: 1613012012826 | G190: 周修娟 | H190: 69.00 | J190: 69.00 | K190: 34.50 | L190: 75.05 | M190: 37.53 | N190: 72.03 | O190: 63
A191: 188 | F191: 1613012011224 | G191: 李佳 | H191: 69.50 | J191: 69.50 | K191: 34.75 | L191: 74.47 | M191: 37.24 | N191: 71.99 | O191: 64
A192: 189 | F192: 1613012024407 | G192: 唐溶励 | H192: 68.00 | J192: 68.00 | K192: 34.00 | L192: 75.85 | M192: 37.93 | N192: 71.93 | O192: 65
A193: 190 | F193: 1613012014716 | G193: 范联琴 | H193: 68.00 | J193: 68.00 | K193: 34.00 | L193: 74.70 | M193: 37.35 | N193: 71.35 | O193: 66
A194: 191 | F194: 1613012013917 | G194: 王欣欢 | H194: 72.50 | J194: 72.50 | K194: 36.25 | L194: 67.56 | M194: 33.78 | N194: 70.03 | O194: 67
A195: 192 | F195: 1613012012330 | G195: 青婷 | H195: 69.00 | J195: 69.00 | K195: 34.50 | L195: 0.00 | M195: 0.00 | N195: 34.50 | O195: 68 | Q195: 缺考
